Cogmind - Beta 15 @@@ ROGUE MODE // 2025.05.24 @ 02:56:20 Player: Cereal Killer Result: Destroyed by G-73 Enforcer with Heavy Laser Performance ------------- Evolutions (8) 4000 Regions Visited (26) 5200 Robots Destroyed (178) 890 Value Destroyed (9412) 9412 Prototype IDs (75) 1500 Alien Tech Used (3) 600 Bonus (11805) 11805 TOTAL SCORE: 33407 Bonus ------- High Alert Combat Kills 1779 Follower Combat Kills 2624 Network Hubs Disabled 600 Registered with UFD 300 Met Optimus in HQ 500 Met Zhirov 300 Met Warlord at Base 500 MAIN.C Attacked Warlord 500 Warlord Defense Kills 274 Built Enhanced Grunts 300 A7 Reached Mainframe 300 Met R17 at Cetus 500 Read Decrypted Archives 300 Hacked Protovariant 500 Met R17 at Research 2000 Met Optimus at Protoforge 1000 Friendly Fire -472 Cogmind --------- Core Integrity 0/1450 Matter 199/300 Energy 350/350 System Corruption 8% Temperature Cool (9) Movement Core (400) Ox7 Location -2/Protoforge Parts ------- > --- POWER (2) -------- Improved Quantum Reactor > --- PROPULSION (7) --- (None) > --- UTILITY (10) ----- Experimental Optical Array Experimental Core Analyzer Experimental Core Analyzer Experimental Core Analyzer Experimental Core Analyzer > --- WEAPON (4) ------- Helical Railgun > --- INVENTORY (5) ---- Improved Quantum Reactor Overtuned Huge Scrapsphere Improved Remote Datajack Plasma Lance Peak State ------------ > --- POWER ------------ Heavy Antimatter Reactor Compact Particle Reactor > --- PROPULSION ------- Q-thruster Q-thruster Q-thruster Q-thruster Q-thruster Impulse Thruster Array > --- UTILITY ---------- Advanced Power Amplifier Advanced Heat Sink Advanced Weight Redist. System Long-range Sensor Array Advanced Signal Interpreter Advanced Targeting Computer Improved Target Analyzer Advanced Transmission Jammer Advanced Reaction Control System Experimental Phase Shifter > --- WEAPON ----------- Enhanced Nova Cannon Cooled Nova Cannon Compact Linear Accelerator Plasma Lance > --- INVENTORY -------- Dimensional Node Initializer Transdimensional Reconstructor EMDS Improved Remote Datajack [Rating: 177] Favorites ----------- Power Micro Fission Core Engine Subdweller Power Source Power Core Micro Fission Core Reactor Quantum Reactor Propulsion Field Propulsion Array Treads Centrium Heavy Treads Leg Carbon-fiber Leg Wheel Wheel Hover Unit Antigrav System Flight Unit Field Propulsion Array Utility Advanced Targeting Computer Device Advanced Heat Sink Storage Small Storage Unit Processor Advanced Targeting Computer Hackware Experimental Hacking Suite Protection Centrium Medium Armor Plating Weapon Advanced Variable Charge Gun Energy Gun Advanced Variable Charge Gun Energy Cannon Nova Cannon Ballistic Gun Advanced KE Penetrator Ballistic Cannon Compact Linear Accelerator Launcher Grenade Launcher Special Weapon Improved Remote Datajack Slashing Weapon Experimental Terror Saw Piercing Weapon Plasma Lance Build | -11 -10 -10 -10 -8 -8 -6 -6 -6 -6 -6 -5 -5 -5 -5 -4 -4 -4 -4 -4 -4 -4 -3 -3 -2 -2 -2 ------- Run | Yrd Mat Min Sub Rec Scr Fac Ext Cet Arc Hub Fac Upp Upp War Pro Fac Was Fac Upp Upp Zhi Pro Res Res Tes Frg Slots Evolved 16 | . . . . . . 8 . . . . 2 . . . . 2 . . . . . . 2 2 . . Power 1 | . . . . . . . . . . . . . . . . 1 . . . . . . . . . . Propulsion 5 | . . . . . . 2 . . . . 1 . . . . 1 . . . . . . 1 . . . Utility 8 | . . . . . . 5 . . . . 1 . . . . . . . . . . . 1 1 . . Weapon 2 | . . . . . . 1 . . . . . . . . . . . . . . . . . 1 . . Parts Attached 243 | 6 . . 14 1 7 2 21 10 . 13 25 18 . 8 . 13 2 4 1 3 5 . 20 1 7 62 Power 29 | 1 . . 2 . . . 1 1 . 2 3 3 . 1 . 1 1 . 1 1 1 . 3 . . 7 Engine 5 | 1 . . 2 . . . . . . . . 1 . . . . . . 1 . . . . . . . Core 7 | . . . . . . . 1 . . . 1 2 . . . 1 . . . 1 . . 1 . . . Reactor 17 | . . . . . . . . 1 . 2 2 . . 1 . . 1 . . . 1 . 2 . . 7 Propulsion 59 | 2 . . 4 . 4 . 7 2 . 1 5 4 . 1 . 3 . 3 . . 1 . 6 . . 16 Treads 8 | . . . 1 . . . . 2 . 1 2 . . . . . . . . . . . . . . 2 Leg 14 | . . . . . 2 . 6 . . . . . . . . . . . . . 1 . . . . 5 Wheel 10 | 2 . . 3 . 2 . . . . . . . . . . . . . . . . . . . . 3 Hover 9 | . . . . . . . 1 . . . 3 4 . 1 . . . . . . . . . . . . Flight 18 | . . . . . . . . . . . . . . . . 3 . 3 . . . . 6 . . 6 Utility 95 | 1 . . 1 . 1 1 9 3 . 7 12 8 . 3 . 7 . 1 . 2 3 . 6 . 3 27 Device 43 | . . . 1 . . . 4 1 . 3 5 3 . 1 . 5 . 1 . 2 2 . 2 . 1 12 Storage 6 | 1 . . . . . . . . . 1 . . . . . . . . . . . . 2 . 1 1 Processor 18 | . . . . . 1 . 1 . . 2 1 2 . . . 1 . . . . . . 1 . . 9 Hackware 2 | . . . . . . . . . . . . . . . . . . . . . . . 1 . 1 . Protection 26 | . . . . . . 1 4 2 . 1 6 3 . 2 . 1 . . . . 1 . . . . 5 Artifact . | . . . . . . . . . . . . . . . . . . . . . . . . . . . Weapon 60 | 2 . . 7 1 2 1 4 4 . 3 5 3 . 3 . 2 1 . . . . . 5 1 4 12 Energy Gun 19 | 2 . . 1 . . 1 4 2 . . 2 1 . 1 . . 1 . . . . . . . 1 3 Energy Cannon 8 | . . . 1 . . . . . . . 2 . . . . . . . . . . . 3 1 1 . Ballistic Gun 16 | . . . 3 . . . . 1 . 2 . 2 . . . . . . . . . . 1 . . 7 Ballistic Cannon 4 | . . . . . 2 . . . . . . . . 1 . 1 . . . . . . . . . . Launcher 3 | . . . 1 . . . . . . . 1 . . . . 1 . . . . . . . . . . Special Weapon 4 | . . . 1 . . . . 1 . 1 . . . . . . . . . . . . . . 1 . Impact Weapon . | . . . . . . . . . . . . . . . . . . . . . . . . . . . Slashing Weapon 4 | . . . . 1 . . . . . . . . . . . . . . . . . . 1 . 1 1 Piercing Weapon 2 | . . . . . . . . . . . . . . 1 . . . . . . . . . . . 1 Special Melee Weapon . | . . . . . . . . . . . . . . . . . . . . . . . . . . . Unidentified Prototypes 50 | . . . . . . 1 . 4 . 3 4 1 . 5 . 2 . 1 . . 4 . 8 . 6 11 Parts Lost 87 | . . . 6 . . 3 5 . . 6 22 . . 2 . 1 . 2 . 2 . . 1 . 2 35 Power 9 | . . . 1 . . . 1 . . . 2 . . . . . . . . 1 . . . . . 4 Propulsion 24 | . . . 1 . . . 2 . . 2 5 . . 1 . . . 1 . . . . . . 1 11 Utility 30 | . . . . . . 1 . . . 3 9 . . 1 . 1 . . . . . . . . 1 14 Weapon 24 | . . . 4 . . 2 2 . . 1 6 . . . . . . 1 . 1 . . 1 . . 6 Highest Loss Streak 10 | . . . 2 . . 2 4 . . 3 9 . . 1 . 1 . 2 . 1 . . 1 . 2 10 To Critical Strikes 1 | . . . . . . . . . . . 1 . . . . . . . . . . . . . . . Average Backups 6 | 2 5 7 7 6 6 6 6 6 6 10 10 3 4 4 4 3 4 4 4 4 4 4 3 3 4 3 Power . | . 1 1 1 2 2 1 1 1 1 . 1 1 2 1 1 . . . . . . . . . . . Propulsion . | . 2 3 1 . . . . . 1 2 1 . . . . . . . . . . . . . . . Utility 1 | . . . . 1 1 . . . 1 2 4 1 1 1 1 1 1 1 2 2 2 1 1 . . . Weapon 2 | 1 2 3 3 3 2 2 3 3 2 3 2 1 1 1 2 2 3 2 2 2 1 1 . . 1 . Tool/Special . | . . . . . . . . . . . . . . . . . . . . . . . . . . . Unused Backups 20 | . . . 3 . 1 1 2 6 . 1 3 1 . . . . . . . . . . . . . 2 Power 7 | . . . 1 . . 1 1 2 . . . 1 . . . . . . . . . . . . . 1 Propulsion 4 | . . . 2 . . . . . . 1 . . . . . . . . . . . . . . . 1 Utility 1 | . . . . . . . . . . . 1 . . . . . . . . . . . . . . . Weapon 7 | . . . . . 1 . 1 4 . . 1 . . . . . . . . . . . . . . . Tool/Special 1 | . . . . . . . . . . . 1 . . . . . . . . . . . . . . . Average Slot Usage (%) 80 | . 85 85 96 85 96 55 65 87 86 85 74 75 86 84 94 84 84 83 83 82 74 78 82 90 85 59 Engine 3 | . 14 14 14 14 14 6 . . . . . 4 5 4 . . . . . . . . . . . . Core 1 | . . . . . . . 5 . . . . . . . . 5 5 5 4 6 7 5 2 . . . Reactor 3 | . . . . . . . . 5 6 6 4 . . . 5 5 5 5 5 2 2 5 5 8 8 5 Treads 2 | . . . 1 . . . . 11 13 12 10 . . . . . . . . . . . . . . . Leg 3 | . . . . . 14 13 14 3 . . . . . . . . . . . . . . . . . 2 Wheel 3 | . 28 28 25 14 10 . . . . . . . . . . . . . . . . . . . . 2 Hover 3 | . . . . . . . 1 . . . 3 20 23 24 23 6 . . . . . . . . . . Flight 4 | . . . . . . . . . . . . . . . . 10 15 15 15 15 14 15 18 26 23 9 Device 14 | . . . 10 14 5 . 9 12 13 12 10 9 11 11 17 20 26 26 26 26 26 26 27 30 26 15 Storage 4 | . 14 14 14 14 14 6 6 6 6 6 4 . . . . . . . . . . . . . . 1 Processor 10 | . . . . . 8 6 6 13 13 17 16 9 11 11 11 12 15 15 15 15 15 15 14 13 13 9 Protection 4 | . . . . . . 4 7 13 13 8 4 13 15 11 17 7 . . . . . . . . . 1 Energy Gun 6 | . 28 28 12 14 10 3 6 12 13 10 9 4 5 4 . . 3 3 5 3 . . . . . 2 Ballistic Gun 3 | . . . 10 . . . . 5 6 8 1 9 11 10 5 5 1 . . . . . . . . 2 Ballistic Cannon 3 | . . . . . 15 13 4 . . . . . . . 5 5 5 5 5 5 1 5 3 4 . . Piercing Weapon 1 | . . . . . . . . . . . . . . . 5 4 5 4 5 5 5 5 4 4 4 1 Peak Build Rating 177 | 6 6 6 13 10 22 31 64 105 105 118 118 81 81 112 106 131 130 133 130 130 129 130 160 173 177 171 Average Rating 82 | 3 6 6 10 10 17 27 39 96 105 111 91 71 79 81 106 120 128 125 129 126 112 129 145 163 153 120 On Entrance 80 | . 6 6 6 10 10 22 22 64 105 105 97 4 81 77 106 106 126 130 130 130 118 129 130 158 164 142 Naked Turns 137 | . . . . . . . . . . . 46 42 . . . . . . . . . . . . . 49 Heaviest Build 78 | 10 10 10 23 18 23 30 47 59 58 72 72 49 49 42 33 46 40 43 43 43 43 43 62 64 64 78 Greatest Support 174 | 20 20 20 20 10 30 30 70 160 160 160 140 44 44 56 45 54 54 54 54 54 54 45 65 65 65 174 Greatest Overweight (x) 3 | . . . 2 1 2 . 3 . . . 2 1 1 . . 1 . . . . 2 . 1 . . 2 Average Overweight (x) . | . . . . 1 . . . . . . . . . . . . . . . . . . . . . . Largest Inventory Capacity 15 | 8 8 8 8 8 8 8 8 8 8 15 15 5 5 5 5 5 5 5 5 5 5 5 10 5 5 5 Average Capacity 7 | 6 8 8 8 8 8 8 8 8 8 12 14 5 5 5 5 5 5 5 5 5 5 5 5 5 5 5 Most Carried 15 | 5 7 7 8 8 8 8 8 8 8 15 15 5 5 5 5 5 5 5 5 5 5 5 5 5 5 5 Average Carried 7 | 2 5 7 7 7 7 7 7 7 8 12 13 4 5 4 5 4 5 4 5 5 4 4 4 4 4 3 Final Capacity 15 | 8 8 8 8 8 8 8 8 8 8 15 5 5 5 5 5 5 5 5 5 5 5 5 5 5 5 5 Final Carried 14 | 4 7 7 7 8 8 7 8 8 8 14 5 5 5 5 5 5 5 5 5 5 5 5 5 5 5 5 Class Distribution -------------------- 32% | Scavenger-Mutant 21% | Mutant 14% | Scavenger-Gunner 12% | Scavenger-Tank 8% | Scavenger-Sprinter 5% | Commander-Tank Dominant Class ---------------- Mutant | -10/Materials Mutant | -10/Mines Mutant | -10/Subcaves Scavenger-Mutant | -8/Recycling Mutant | -8/Scraptown Gunner | -6/Factory Mutant | -6/Extension Commander-Tank | -6/Cetus Commander-Tank | -6/Archives Scavenger-Tank | -6/Hub_04(d) Scavenger-Gunner | -5/Factory Scavenger-Gunner | -5/Upper Caves Scavenger-Gunner | -5/Upper Caves Scavenger-Gunner | -5/Warlord Scavenger-Mutant | -4/Proximity Caves Scavenger-Mutant | -4/Factory Scavenger-Mutant | -4/Waste Scavenger-Mutant | -4/Factory Scavenger-Mutant | -4/Upper Caves Scavenger-Mutant | -4/Upper Caves Scavenger-Mutant | -4/Zhirov Scavenger-Mutant | -3/Proximity Caves Scavenger-Mutant | -3/Research Scavenger-Sprinter | -2/Research Scavenger-Sprinter | -2/Testing Scavenger-Mutant | -2/Protoforge Resources | -11 -10 -10 -10 -8 -8 -6 -6 -6 -6 -6 -5 -5 -5 -5 -4 -4 -4 -4 -4 -4 -4 -3 -3 -2 -2 -2 ----------- Run | Yrd Mat Min Sub Rec Scr Fac Ext Cet Arc Hub Fac Upp Upp War Pro Fac Was Fac Upp Upp Zhi Pro Res Res Tes Frg Matter Collected 5532 | 216 30 . 254 . 175 . 592 140 . 729 481 254 59 207 . 64 169 89 42 137 . . 506 89 . 1299 Remotely . | . . . . . . . . . . . . . . . . . . . . . . . . . . . Salvage Created 9965 | . 30 . 400 27 . 154 514 157 . 2414 2442 80 181 92 . 137 171 197 . 234 . . 1107 89 . 1539 Parts 466 | . 2 . 27 . . 7 20 10 . 115 113 7 5 8 . 4 . 11 . 18 . . 39 2 . 78 Haulers Intercepted 12 | . . . . . . . . . . 1 2 . . . . 1 . . . . . . 7 . . 1 Recyclers Shooed 5 | . . . . . . . . . . . 4 . . . . . . . . . . . . . 1 . Parts Field Recycled . | . . . . . . . . . . . . . . . . . . . . . . . . . . . Retrieved Matter . | . . . . . . . . . . . . . . . . . . . . . . . . . . . Parts Self-Destructed 56 | . . . 13 . . . . . . . . 14 5 . 6 . . . . 18 . . . . . . Prevented . | . . . . . . . . . . . . . . . . . . . . . . . . . . . Kills | -11 -10 -10 -10 -8 -8 -6 -6 -6 -6 -6 -5 -5 -5 -5 -4 -4 -4 -4 -4 -4 -4 -3 -3 -2 -2 -2 ------- Run | Yrd Mat Min Sub Rec Scr Fac Ext Cet Arc Hub Fac Upp Upp War Pro Fac Was Fac Upp Upp Zhi Pro Res Res Tes Frg Combat Hostiles Destroyed 138 | . 1 . 14 1 . 4 9 2 . 31 40 . 3 2 . 1 1 3 . 6 . . 1 1 . 18 Melee 1 | . . . . . . . . . . . . . . . . . . . . . . . . . . 1 Guns 105 | . 1 . 9 . . 2 7 2 . 30 30 . 3 2 . . 1 1 . 2 . . . . . 15 Cannons 23 | . . . 2 . . 2 2 . . . 8 . . . . 1 . 2 . 4 . . 1 . . 1 AOE 6 | . . . 3 1 . . . . . . 1 . . . . . . . . . . . . . . 1 Classes Destroyed 22 | . 1 . 3 . . 1 1 1 . 7 . 1 . 1 . . 1 1 . . . . . . . 4 Worker 5 | . . . . . . . . . . 5 . . . . . . . . . . . . . . . . Builder 5 | . . . . . . . . . . 2 3 . . . . . . . . . . . . . . . Hauler 12 | . . . . . . . . . . 1 2 . . . . 1 . . . . . . 7 . . 1 Recycler 3 | . . . . . . . 1 . . . 1 . . . . . . . . . . . 1 . . . Operator 1 | . . . . . . . . . . . . . . . . . . 1 . . . . . . . . Drone 1 | . . . . . . . . . . . . . . . . . . . . . . . . . . 1 Watcher 12 | . . . . . . . . 1 . 3 1 . . . . . . 3 . . . . 3 . . 1 Swarmer 27 | . . . 5 . . 1 3 . . . 11 . 1 1 . . . 1 . 4 . . . . . . Grunt 37 | . 1 . 1 . . 2 3 . . 11 14 . 1 . . . . . . 1 . . . . . 3 Brawler 5 | . . . . . . . . . . 1 2 . . . . . . . . . . . . . . 2 Protector 3 | . . . . . . . . . . 2 1 . . . . . . . . . . . . . . . Sentry 15 | . . . 1 1 . . 3 . . 7 . . 1 . . 1 . . . . . . . 1 . . Hunter 8 | . . . . . . . . . . 1 7 . . . . . . . . . . . . . . . Programmer 12 | . . . . . . . . . . 2 5 . . . . . . 2 . 1 . . 1 . . 1 Behemoth 2 | . . . . . . 1 . . . 1 . . . . . . . . . . . . . . . . Compactor 1 | . . . . . . . . . . . . . . . . . 1 . . . . . . . . . Cetus Guard 2 | . . . . . . . . 2 . . . . . . . . . . . . . . . . . . Lightning 6 | . . . . . . . . . . 6 . . . . . . . . . . . . . . . . Hotshot 2 | . . . . . . . . . . . . . . . . . . . . . . . . . . 2 Decapitator 1 | . . . . . . . . . . . . . . . . . . . . . . . . . . 1 Striker 5 | . . . . . . . . . . . . . . 1 . . . . . . . . . . . 4 Executioner 4 | . . . . . . . . . . . . . . . . . . . . . . . . . . 4 Subdweller 7 | . . . 7 . . . . . . . . . . . . . . . . . . . . . . . Ranger 1 | . . . . . . . . . . . . 1 . . . . . . . . . . . . . . Scrapoid 1 | . . . . . . . . . . . . . . . . . . . . . . . . . . 1 Thug 1 | . . . . . . . . . . . . . . . . . . . . 1 . . . . . . Best Kill Streak 14 | . 1 . 3 1 . 4 5 2 . 5 14 . 3 1 . 1 1 2 . 3 . . 2 1 . 5 Combat Bots Only 12 | . 1 . 3 1 . 4 4 1 . 4 12 . 3 1 . 1 1 2 . 3 . . 1 1 . 4 Max Kills in Single Turn 3 | . 1 . 1 1 . 1 2 1 . 3 2 1 1 1 . 1 1 1 . 1 . . 1 1 . 1 Gunslinging 1 | . . . . . . . . . . . 1 . . . . . . . . . . . . . . . Exploded 1 | . . . 1 1 . . . . . . 1 . . . . . . . . . . . . . . 1 Melee 1 | . . . . . . . . . . . . . . . . . . . . . . . . . . 1 Uniques/NPCs Destroyed . | . . . . . . . . . . . . . . . . . . . . . . . . . . . Combat | -11 -10 -10 -10 -8 -8 -6 -6 -6 -6 -6 -5 -5 -5 -5 -4 -4 -4 -4 -4 -4 -4 -3 -3 -2 -2 -2 -------- Run | Yrd Mat Min Sub Rec Scr Fac Ext Cet Arc Hub Fac Upp Upp War Pro Fac Was Fac Upp Upp Zhi Pro Res Res Tes Frg Hostile Shots Fired 1593 | . 5 . 76 6 . 41 116 17 2 326 374 13 31 29 45 30 . 40 12 17 . . 3 14 30 366 Missed 557 | . 2 . 23 2 . 14 42 4 . 111 97 6 8 10 32 14 . 15 8 8 . . 3 9 22 127 Deflected 11 | . . . . . . . . . . . . . . . . . . . . . . . . . . 11 Hits 1036 | . 3 . 53 4 . 27 74 13 2 215 277 7 23 19 13 16 . 25 4 9 . . . 5 8 239 Melee 58 | . . . . . . . . . . . 18 . . 1 . . . . . . . . . . . 39 Projectile 978 | . 3 . 53 4 . 27 74 13 2 215 259 7 23 18 13 16 . 25 4 9 . . . 5 8 200 AOE 3 | . . . . . . . . . . . 1 . . . . 1 . . . . . . . . . 1 Critical Strikes 74 | . . . . . . 2 2 1 . 20 10 1 2 . . . . 1 . . . . . 1 . 34 Part Disruptions 4 | . . . . . . . . . . 2 . . . . . . . . . . . . . . . 2 Damage Taken 22463 | . 32 . 874 64 . 543 795 298 248 3434 5609 118 385 419 197 355 22 496 71 160 . . . 104 186 8053 Core 2920 | . . . 206 . . 75 106 . . 233 656 95 34 49 . . . 21 22 22 . . . . . 1401 Absorbed by Shields 290 | . . . . . . . 85 49 . . . . . 156 . . . . . . . . . . . . Reduced by Siege Mode 306 | . . . . . . . . . . 227 79 . . . . . . . . . . . . . . . Redirected to Shielding 19 | . . . . . . . . . . . . . 8 11 . . . . . . . . . . . . Ignored by Resistances 1189 | . . . . . . . . . . 1184 5 . . . . . . . . . . . . . . . Regen/Repaired (Parts) 937 | . . . . . 323 . . . . . 502 . . 53 . . 9 . . . . . . . . 50 Core Remaining (%) 63 | 100 . . . . 17 . . . . 51 . . . . 16 . . . . . . 94 100 . . . Volleys Fired 484 | . 6 . 44 3 . 25 28 11 5 117 104 1 5 9 . 2 9 5 . 9 . . 5 6 4 86 Largest 4 | . 2 . 2 2 . 3 3 3 1 3 3 2 3 3 . 3 1 2 . 2 . . 1 1 1 4 Hottest 355 | . 80 . 140 90 . 155 236 240 35 355 240 68 137 137 . 142 65 118 . 118 . . 70 120 7 257 Shots Fired 1079 | . 12 . 80 6 . 56 58 25 5 312 236 3 14 27 . 6 9 9 . 13 . . 5 6 4 193 Gun 888 | . 12 . 63 3 . 19 32 23 5 311 170 3 14 27 . 2 9 4 . 3 . . . . . 188 Cannon 165 | . . . 8 . . 37 26 . . . 63 . . . . 4 . 5 . 10 . . 5 6 . 1 Launcher 11 | . . . 5 3 . . . . . . 3 . . . . . . . . . . . . . . . Special 15 | . . . 4 . . . . 2 . 1 . . . . . . . . . . . . . . 4 4 Kinetic 464 | . . . 35 . . 37 26 5 5 140 37 3 10 18 . 6 . 5 . 10 . . 1 . . 126 Thermal 548 | . 12 . 40 3 . 19 32 18 . 171 196 . 4 9 . . 9 . . . . . . 3 . 32 Explosive 11 | . . . 5 3 . . . . . . 3 . . . . . . . . . . . . . . . Electromagnetic 38 | . . . . . . . . . . . . . . . . . . . . . . . 4 3 . 31 Entropic 7 | . . . . . . . . . . . . . . . . . . 4 . 3 . . . . . . Robot Hit Streak 22 | . 3 . 14 5 . 8 10 12 2 21 22 4 8 12 . 5 10 16 . 4 . . 8 11 15 19 Robot Miss Streak 11 | . 5 . 2 1 . 1 4 2 2 2 3 . 2 2 . 1 . 1 . 2 . . . . . 11 Penetration Max 2 | . . . . . . . . 1 . 1 1 . 1 . . . . . . . . . . . . 2 Secondary Targets 24 | . . . 1 . . . 2 . . 5 7 . 1 2 . . . . . . . . . . . 6 Max Gunslinging Chain 1 | . . . 1 . . . 1 . . 1 1 . 1 1 . . . . . . . . . . . 1 Shots Hit Robots 796 | . 4 . 42 5 . 20 41 19 2 221 182 3 9 19 . 9 9 17 . 8 . . 26 3 5 152 Core Hits 371 | . 2 . 21 4 . 10 24 11 . 97 93 2 4 8 . 4 2 8 . 9 . . 11 . . 61 Critical Kills 24 | . . . . . . . . 1 . 7 9 1 2 1 . . . . . . . . . . . 3 Critical Parts Destroyed 23 | . . . . . . . . . . 10 4 . 1 1 . . . . . . . . . . . 7 Critical Strikes 64 | . . . . . . 2 1 1 . 17 13 1 3 3 . . . 3 . . . . 5 . . 15 Destroy 48 | . . . . . . . . 1 . 17 13 1 3 3 . . . . . . . . . . . 10 Blast 5 | . . . . . . 2 1 . . . . . . . . . . 2 . . . . . . . . Corrupt 1 | . . . . . . . . . . . . . . . . . . . . . . . 1 . . . Sever 5 | . . . . . . . . . . . . . . . . . . . . . . . . . . 5 Impale 5 | . . . . . . . . . . . . . . . . . . 1 . . . . 4 . . . Melee Attacks 108 | . . . . . . . . . . . . . . 1 1 10 . 32 . . . 1 26 5 21 11 Impact . | . . . . . . . . . . . . . . . . . . . . . . . . . . . Slashing 6 | . . . . . . . . . . . . . . . . . . . . . . . . . . 6 Piercing 102 | . . . . . . . . . . . . . . 1 1 10 . 32 . . . 1 26 5 21 5 Sneak Attacks 11 | . . . . . . . . . . . . . . . . 1 . 1 . . . . 8 . 1 . Combat Hostiles . | . . . . . . . . . . . . . . . . . . . . . . . . . . . Follow-up Attacks . | . . . . . . . . . . . . . . . . . . . . . . . . . . . Damage Inflicted 26162 | . 45 . 893 174 . 555 1170 455 53 6825 5784 40 172 381 . 468 279 1028 . 424 . . 1966 127 111 5212 Guns 18278 | . 45 . 581 42 . 158 614 455 53 6426 3947 40 172 326 . 23 279 267 . 164 . . . . . 4686 Cannons 3399 | . . . 54 . . 394 548 . . . 1474 . . . . 121 . 149 . 260 . . 182 127 . 90 Explosions 1090 | . . . 224 132 . . . . . 371 363 . . . . . . . . . . . . . . . Melee 3322 | . . . . . . . . . . . . . . 55 . 324 . 612 . . . . 1784 . 111 436 Ramming 39 | . . . . . . 3 8 . . 28 . . . . . . . . . . . . . . . . Kinetic 9848 | . . . 304 . . 394 548 136 53 2757 940 40 132 205 . 144 . 149 . 260 . . 45 . . 3741 Thermal 11027 | . 45 . 365 42 . 158 614 319 . 3669 4481 . 40 121 . . 279 . . . . . . . . 894 Explosive 719 | . . . 224 132 . . . . . . 363 . . . . . . . . . . . . . . . Electromagnetic 776 | . . . . . . . . . . 371 . . . . . . . . . . . . 137 127 . 141 Impact . | . . . . . . . . . . . . . . . . . . . . . . . . . . . Slashing 198 | . . . . . . . . . . . . . . . . . . . . . . . . . . 198 Piercing 3124 | . . . . . . . . . . . . . . 55 . 324 . 612 . . . . 1784 . 111 238 Entropic 431 | . . . . . . . . . . . . . . . . . . 267 . 164 . . . . . . Highest Corruption 25 | . . . . 1 1 1 1 . . 25 15 15 17 17 2 . . 3 3 4 4 4 . . . 8 Average Corruption 7 | . . . . 1 1 1 1 . . 19 8 15 15 4 2 . . 2 3 3 4 4 . . . 6 Corruption Purged 7 | . . . . . . . 1 . . . . . . . . . . . . . . . . . . 6 Corruption Blocked . | . . . . . . . . . . . . . . . . . . . . . . . . . . . Effects 143 | . . . . 2 . 3 5 . . 38 20 30 9 3 1 . . 11 3 8 1 3 . . . 6 Message Errors 30 | . . . . 1 . 1 2 . . 7 3 4 3 1 . . . 1 1 3 1 . . . . 2 Matter Fused 27 | . . . . 1 . 1 2 . . 4 2 8 3 1 . . . 3 . 1 . . . . . 1 Heat Flow Errors 15 | . . . . . . . . . . 4 2 5 1 . . . . 3 . . . . . . . . Energy Discharges 25 | . . . . . . . . . . 7 3 5 1 . . . . 3 1 3 . 1 . . . 1 Parts Rejected 2 | . . . . . . . . . . 1 . . . . . . . . . . . . . . . 1 Data Loss (minor) 20 | . . . . . . . 1 . . 6 4 4 . 1 . . . 1 1 . . 1 . . . 1 Data Loss (major) 7 | . . . . . . . . . . 1 1 2 1 . 1 . . . . . . 1 . . . . Misfires 4 | . . . . . . . . . . 1 1 1 . . . . . . . 1 . . . . . . Alerts 1 | . . . . . . . . . . . 1 . . . . . . . . . . . . . . . Misdirections 3 | . . . . . . . . . . 1 1 1 . . . . . . . . . . . . . . Weapon Failures 9 | . . . . . . 1 . . . 6 2 . . . . . . . . . . . . . . . Overload Shots 5 | . . . . . . . . 1 . 3 . . . . . . . . . . . . . . . 1 Overflow Damage 505 | . . . 10 . . . . . . . 25 . . . . 17 . 149 . . . . 304 . . . Projectiles 25 | . . . . . . . . . . . 25 . . . . . . . . . . . . . . . Explosions 10 | . . . 10 . . . . . . . . . . . . . . . . . . . . . . . Melee 470 | . . . . . . . . . . . . . . . . 17 . 149 . . . . 304 . . . Knockbacks 13 | . . . . . . 7 5 . . . . . . . . . . . . 1 . . . . . . Impact 1 | . . . . . . 1 . . . . . . . . . . . . . . . . . . . . Kinetic 12 | . . . . . . 6 5 . . . . . . . . . . . . 1 . . . . . . Secondary . | . . . . . . . . . . . . . . . . . . . . . . . . . . . Self-Inflicted Damage 212 | . . . 41 . . 55 . . . 42 74 . . . . . . . . . . . . . . . Shots 8 | . . . 2 . . 2 . . . 2 2 . . . . . . . . . . . . . . . Rammed 3 | . . . . . . . . . . 2 . . . 1 . . . . . . . . . . . . Targets Rammed 11 | . . . . . . 1 7 . . 2 . . . 1 . . . . . . . . . . . . Kicked 8 | . . . . . . 1 7 . . . . . . . . . . . . . . . . . . . Crushed . | . . . . . . . . . . . . . . . . . . . . . . . . . . . Highest Temperature 381 | . 92 . 17 99 . 282 254 210 . 368 381 188 196 205 5 140 . 1 . . . . 346 124 11 32 Average Temperature 71 | . 37 . 7 52 . 94 111 70 . 58 76 87 65 53 3 69 . 1 . . . . 89 48 11 9 Received Heat Transfer 2428 | . 18 . 204 18 . 126 303 36 18 438 670 9 45 18 . 12 9 42 . 30 . . . . 9 423 Effects 4 | . . . . . . . . . . 3 . . . . . . . . . . . . 1 . . . Energy Bleed 2 | . . . . . . . . . . 1 . . . . . . . . . . . . 1 . . . Interference 2 | . . . . . . . . . . 2 . . . . . . . . . . . . . . . . Siege Activations 8 | . . . . . . . . . . 5 3 . . . . . . . . . . . . . . . Total Turns 240 | . . . . . . . . . . 156 84 . . . . . . . . . . . . . . . Longest Duration 88 | . . . . . . . . . . 88 42 . . . . . . . . . . . . . . . Martial Activations . | . . . . . . . . . . . . . . . . . . . . . . . . . . . Shielding Activations 2 | . . . . . . . . . . . . . . . . . . . . . . . . . . 2 Total Turns 29 | . . . . . . . . . . . . . . . . . . . . . . . . . . 29 Longest Duration 22 | . . . . . . . . . . . . . . . . . . . . . . . . . . 22 Robots Disrupted 2 | . . . . . . . . . . . . . . . . . . . . . . . . . . 2 Combat Hostiles 1 | . . . . . . . . . . . . . . . . . . . . . . . . . . 1 Robots Corrupted 2 | . . . . . . . . . . 1 . . . . . . . . . . . . . 1 . . Combat Hostiles 2 | . . . . . . . . . . 1 . . . . . . . . . . . . . 1 . . Parts Fried 3 | . . . . . . . . . . 3 . . . . . . . . . . . . . . . . Impact Corruptions . | . . . . . . . . . . . . . . . . . . . . . . . . . . . Robots Melted 1 | . . . . . . . . . . . 1 . . . . . . . . . . . . . . . Combat Hostiles 1 | . . . . . . . . . . . 1 . . . . . . . . . . . . . . . Parts Melted 22 | . . . . . . 1 . 1 . 5 14 . . . . . . . . . . . 1 . . . Heat Transferred 14061 | . 100 . 739 50 . 350 1128 556 . 4221 5157 . 74 222 . . 333 . . . . . . . . 1131 Parts Sabotaged 2 | . . . . . . . . . . . . . . . . . . . . . . . . . . 2 Parts Stolen . | . . . . . . . . . . . . . . . . . . . . . . . . . . . Parts Stripped . | . . . . . . . . . . . . . . . . . . . . . . . . . . . Power Chain Reactions . | . . . . . . . . . . . . . . . . . . . . . . . . . . . Alert | -11 -10 -10 -10 -8 -8 -6 -6 -6 -6 -6 -5 -5 -5 -5 -4 -4 -4 -4 -4 -4 -4 -3 -3 -2 -2 -2 ------- Run | Yrd Mat Min Sub Rec Scr Fac Ext Cet Arc Hub Fac Upp Upp War Pro Fac Was Fac Upp Upp Zhi Pro Res Res Tes Frg Maximum Alert Level 4 | . . . . . . 1 2 2 2 4 4 . . . . . . 1 . . . . 1 . 1 2 Low Security (%) 48 | 100 100 100 . 100 . 87 75 . 55 6 . . . . . 100 100 41 . . . . 92 100 77 33 Level 1 16 | . . . . . . 12 14 5 12 10 . . . . . . . 58 . . . . 7 . 22 40 Level 2 24 | . . . . . . . 10 94 32 58 47 . . . . . . . . . . . . . . 25 Level 3 8 | . . . . . . . . . . 24 36 . . . . . . . . . . . . . . . Level 4 2 | . . . . . . . . . . . 16 . . . . . . . . . . . . . . . Level 5 . | . . . . . . . . . . . . . . . . . . . . . . . . . . . High Security . | . . . . . . . . . . . . . . . . . . . . . . . . . . . Max Security . | . . . . . . . . . . . . . . . . . . . . . . . . . . . Peak Influence 1283 | . 20 . . 47 . 247 657 549 558 1195 1283 . . . . 62 80 260 . . . . 227 156 281 528 Initial 585 | . . . . 47 . . 110 354 177 162 585 . . . . 22 3 21 . . . . . . 87 146 Average 308 | . 3 . . 8 . 63 148 475 290 565 812 . . . . 25 34 191 . . . . 70 66 173 295 Influence Increases 9748 | . 20 . 240 42 . 354 941 360 507 1653 1400 . 120 282 206 151 120 863 30 160 . . 323 231 374 1371 Destroy 0b10 Robot/C 3680 | . 20 . 140 20 . 80 460 160 240 580 780 . 60 140 40 20 . 300 . 120 . . 20 20 . 480 Destroy 0b10 Robot/NC 240 | . . . . . . . 20 10 5 65 40 . . . . 5 . 25 . . . . 55 . . 15 Destroy Leader 554 | . . . 10 . . 10 32 . . 158 136 . . . . 12 . 56 . 10 . . 18 10 . 102 Allied During Kill 952 | . . . . . . . 309 170 231 . . . . 52 1 . . 46 . . . . . . . 143 Successful Hack 694 | . . . . 7 . 44 60 . . 48 79 . . . . 18 . 130 . . . . 5 12 119 172 Disable Machine 705 | . . . . . . 150 . 15 15 195 60 . . . . 15 . 15 . . . . . . 135 105 Anti-Garrison Action 550 | . . . . . . . . . . 350 . . . . . . . . . . . . 200 . . . Destroy Structure 858 | . . . . 15 . 70 15 5 16 242 110 . . . . 6 120 96 . . . . 10 24 30 99 Partial Spotted 105 | . . . . . . . . . . . 15 . . . . . . 45 . . . . 15 30 . . Lose Combat Pursuer 1410 | . . . 90 . . . 45 . . 15 180 . 60 90 165 75 . 150 30 30 . . . 135 90 255 Influence Decreases 9279 | . 20 . 141 141 . 127 535 549 487 922 1316 752 211 532 356 177 100 676 152 189 66 . 323 75 269 1163 Entered New Map 3205 | . . . . 52 . . 117 279 267 302 610 474 101 436 186 14 7 9 82 19 66 . . . 69 115 Time Decay 4353 | . 20 . 121 89 . 97 307 230 40 550 486 278 110 56 150 150 63 407 70 150 . . 256 75 170 478 Lost Part 817 | . . . 20 . . 30 50 . . 60 220 . . 10 . 10 . 20 . 20 . . 7 . 20 350 Lost Ally 904 | . . . . . . . 61 40 180 10 . . . 30 20 3 30 240 . . . . 60 . 10 220 Squads Dispatched 64 | . 2 . . . . 4 2 . . 9 15 . . . 1 3 . 8 . . . . 5 1 5 9 Investigation 29 | . 1 . . . . 3 1 . . 3 5 . . . . 2 . 5 . . . . 3 1 . 5 Extermination 11 | . . . . . . 1 . . . 2 1 . . . . 1 . 3 . . . . . . 2 1 Reinforcement 12 | . 1 . . . . . 1 . . 1 2 . . . . . . . . . . . 2 . 2 3 Assault 11 | . . . . . . . . . . 2 7 . . . 1 . . . . . . . . . 1 . Garrison 1 | . . . . . . . . . . 1 . . . . . . . . . . . . . . . . Intercept . | . . . . . . . . . . . . . . . . . . . . . . . . . . . Searches Triggered . | . . . . . . . . . . . . . . . . . . . . . . . . . . . Construction Impeded 2 | . . . . . . . 1 . . . 1 . . . . . . . . . . . . . . . Haulers Reinforced 3 | . . . . . . . . . . . 1 . . . . . . . . . . . 2 . . . Active Scanning Responses . | . . . . . . . . . . . . . . . . . . . . . . . . . . . Cargo Convoy Interrupts 1 | . . . . . . . . . . . 1 . . . . . . . . . . . . . . . Stealth | -11 -10 -10 -10 -8 -8 -6 -6 -6 -6 -6 -5 -5 -5 -5 -4 -4 -4 -4 -4 -4 -4 -3 -3 -2 -2 -2 --------- Run | Yrd Mat Min Sub Rec Scr Fac Ext Cet Arc Hub Fac Upp Upp War Pro Fac Was Fac Upp Upp Zhi Pro Res Res Tes Frg Distress Signals 20 | . . . . . . 1 . 2 . 3 . . . 1 . 1 . 3 . . . . 1 1 2 5 Communications Jammed 32 | . . . . . . . . . . . 6 . . . . 8 . . . . . . 5 3 3 7 Distress Signals 28 | . . . . . . . . . . . 2 . . . . 8 . . . . . . 5 3 3 7 Times Spotted 451 | . 5 . 21 1 . 10 27 10 8 47 65 8 9 47 13 9 5 21 2 7 . . 6 4 14 112 Peak Tracking Total 14 | . 3 . 5 1 . 5 6 5 7 6 11 4 7 14 7 4 3 4 2 5 . . 3 8 5 12 Tactical Retreats 45 | . . . 2 . . . 3 . . 1 4 . 1 2 4 2 1 8 1 1 . . . 4 3 8 Traps | -11 -10 -10 -10 -8 -8 -6 -6 -6 -6 -6 -5 -5 -5 -5 -4 -4 -4 -4 -4 -4 -4 -3 -3 -2 -2 -2 ------- Run | Yrd Mat Min Sub Rec Scr Fac Ext Cet Arc Hub Fac Upp Upp War Pro Fac Was Fac Upp Upp Zhi Pro Res Res Tes Frg Traps Triggered 13 | . 1 . . . . 1 4 . . 1 . . . . . 1 . 2 . . . . . 1 1 1 Indirectly 1 | . . . . . . 1 . . . . . . . . . . . . . . . . . . . . Trap Hack Attempts . | . . . . . . . . . . . . . . . . . . . . . . . . . . . Triggered . | . . . . . . . . . . . . . . . . . . . . . . . . . . . Disarmed . | . . . . . . . . . . . . . . . . . . . . . . . . . . . Reprogrammed . | . . . . . . . . . . . . . . . . . . . . . . . . . . . Reused 1 | . . . 1 . . . . . . . . . . . . . . . . . . . . . . . Traps Extracted . | . . . . . . . . . . . . . . . . . . . . . . . . . . . Installed 1 | . . . 1 . . . . . . . . . . . . . . . . . . . . . . . Triggered . | . . . . . . . . . . . . . . . . . . . . . . . . . . . Most Traps Carried 1 | . . . 1 . . . . . . . . . . . . . . . . . . . . . . . Machines | -11 -10 -10 -10 -8 -8 -6 -6 -6 -6 -6 -5 -5 -5 -5 -4 -4 -4 -4 -4 -4 -4 -3 -3 -2 -2 -2 ---------- Run | Yrd Mat Min Sub Rec Scr Fac Ext Cet Arc Hub Fac Upp Upp War Pro Fac Was Fac Upp Upp Zhi Pro Res Res Tes Frg Machines Disabled 51 | . . . 1 . . 10 . 1 1 14 4 . . . . 1 . 1 . . . 1 . . 9 8 Max in Single Turn 7 | . . . 1 . . 7 . 1 . 5 1 . . . . 1 . 1 . . . 1 . . 1 2 Garrison Access 6 | . . . . . . . . . . 2 . . . . . 2 . . . . . . 1 1 . . Network Hub 3 | . . . . . . . . . . 3 . . . . . . . . . . . . . . . . Machines Repaired . | . . . . . . . . . . . . . . . . . . . . . . . . . . . Machines Dismantled . | . . . . . . . . . . . . . . . . . . . . . . . . . . . Machines Sabotaged . | . . . . . . . . . . . . . . . . . . . . . . . . . . . Overloaded Fab Kills . | . . . . . . . . . . . . . . . . . . . . . . . . . . . Hacking | -11 -10 -10 -10 -8 -8 -6 -6 -6 -6 -6 -5 -5 -5 -5 -4 -4 -4 -4 -4 -4 -4 -3 -3 -2 -2 -2 --------- Run | Yrd Mat Min Sub Rec Scr Fac Ext Cet Arc Hub Fac Upp Upp War Pro Fac Was Fac Upp Upp Zhi Pro Res Res Tes Frg Machines Accessed 113 | . 1 . 1 5 4 3 16 1 1 12 10 . . 6 . 6 . 16 2 . 5 1 2 3 7 11 Terminals 53 | . 1 . . 5 . 1 16 1 . 10 2 . . . . . . 6 . . . . 1 1 5 4 Fabricators 11 | . . . . . . . . . . . . . . . . 2 . 4 . . . . . . 1 4 Repair Stations 1 | . . . . . . . . . . . 1 . . . . . . . . . . . . . . . Recycling Units 18 | . . . . . . 2 . . . . 5 . . . . 2 . 5 . . . . . 1 . 3 Scanalyzers 3 | . . . . . . . . . . . 1 . . . . . . 1 . . . . . . 1 . Garrison Access 7 | . . . . . . . . . . 2 1 . . . . 2 . . . . . . 1 1 . . Total Hacks 390 | . 3 . 5 15 12 10 35 2 23 35 42 . . 9 . 21 . 57 7 . 19 1 3 12 37 42 Successful 221 | . . . 5 7 12 4 17 . 23 15 19 . . 9 . 8 . 30 7 . 19 1 2 5 20 18 Failed 169 | . 3 . . 8 . 6 18 2 . 20 23 . . . . 13 . 27 . . . . 1 7 17 24 Catastrophic 31 | . . . . 4 . 1 3 2 . 1 4 . . . . 2 . 4 . . . . 1 1 4 4 Database Lockouts . | . . . . . . . . . . . . . . . . . . . . . . . . . . . Manual 134 | . 4 . . 3 . 9 7 1 . 23 19 . . . . 15 . 23 . . . . 3 6 7 14 Terminals 196 | . 3 . . 15 . 6 35 2 . 32 14 . . . . . . 27 . . . . 1 6 34 21 Fabricators 47 | . . . . . . . . . . . . . . . . 13 . 17 . . . . . . 2 15 Repair Stations 5 | . . . . . . . . . . . 5 . . . . . . . . . . . . . . . Recycling Units 35 | . . . . . . 4 . . . . 10 . . . . 4 . 8 . . . . . 3 . 6 Scanalyzers 18 | . . . . . . . . . . . 12 . . . . . . 5 . . . . . . 1 . Garrison Access 13 | . . . . . . . . . . 3 1 . . . . 4 . . . . . . 2 3 . . Terminal Hacks 140 | . . . 5 7 12 1 15 . 23 7 4 . . 9 . . . 12 7 . 19 1 . 1 13 4 Record 60 | . . . 5 . 6 . . . 23 . . . . 8 . . . 1 6 . 7 1 . . 3 . Part Schematic 5 | . . . . 1 . . . . . . . . . . . . . . . . 4 . . . . . Robot Analysis 15 | . . . . 2 6 . 1 . . . . . . . . . . . . . 4 . . . 1 1 Prototype ID Bank 10 | . . . . 1 . . 1 . . . 1 . . . . . . 1 . . 4 . . . 1 1 Open Door 13 | . . . . . . . 11 . . . . . . 1 . . . . 1 . . . . . . . Branch Access Points 3 | . . . . . . . . . . . . . . . . . . 1 . . . . . 1 1 . Emergency Access Points 6 | . . . . . . . . . . 3 1 . . . . . . 1 . . . . . . . 1 Alert Level 3 | . . . . 1 . . . . . . . . . . . . . 2 . . . . . . . . Locate Traps 3 | . . . . . . 1 . . . 1 . . . . . . . 1 . . . . . . . . Dispatch Records 2 | . . . . . . . . . . . . . . . . . . . . . . . . . 2 . Reinforcement Status 2 | . . . . . . . . . . . . . . . . . . 1 . . . . . . 1 . Recall Investigation 2 | . . . . . . . . . . 1 . . . . . . . 1 . . . . . . . . Recall Reinforcements 5 | . . . . . . . . . . 1 1 . . . . . . 1 . . . . . . 2 . Hauler Manifests 2 | . . . . . . . 1 . . . 1 . . . . . . . . . . . . . . . Zone Layout 7 | . . . . 2 . . 1 . . 1 . . . . . . . 2 . . . . . . . 1 Protovariant Controls 2 | . . . . . . . . . . . . . . . . . . . . . . . . . 2 . Fabricator Hacks 12 | . . . . . . . . . . . . . . . . 2 . 3 . . . . . . 2 5 Network Status 4 | . . . . . . . . . . . . . . . . 1 . 2 . . . . . . 1 . Load Schematic 3 | . . . . . . . . . . . . . . . . . . . . . . . . . 1 2 Build 5 | . . . . . . . . . . . . . . . . 1 . 1 . . . . . . . 3 Repair Station Hacks 3 | . . . . . . . . . . . 3 . . . . . . . . . . . . . . . Scan Component 2 | . . . . . . . . . . . 2 . . . . . . . . . . . . . . . Repair 1 | . . . . . . . . . . . 1 . . . . . . . . . . . . . . . Recycling Unit Hacks . | . . . . . . . . . . . . . . . . . . . . . . . . . . . Scanalyzer 4 | . . . . . . . . . . . 4 . . . . . . . . . . . . . . . Insert Component 3 | . . . . . . . . . . . 3 . . . . . . . . . . . . . . . Analyze 1 | . . . . . . . . . . . 1 . . . . . . . . . . . . . . . Garrison Access Hacks 3 | . . . . . . . . . . . . . . . . 2 . . . . . . . 1 . . Seal Access 3 | . . . . . . . . . . . . . . . . 2 . . . . . . . 1 . . Unauthorized Hacks 59 | . . . . . . 3 2 . . 8 8 . . . . 4 . 15 . . . . 2 3 5 9 Terminals 32 | . . . . . . 2 2 . . 7 3 . . . . . . 4 . . . . 1 2 5 6 Track 6 | . . . . . . . . . . 2 1 . . . . . . . . . . . . . 1 2 Assimilate 4 | . . . . . . . . . . 2 . . . . . . . . . . . . . . 2 . Botnet 15 | . . . . . . 1 2 . . 2 1 . . . . . . 3 . . . . 1 1 2 2 Disrupt 3 | . . . . . . . . . . 1 . . . . . . . . . . . . . . . 2 Operators 4 | . . . . . . 1 . . . . 1 . . . . . . 1 . . . . . 1 . . Fabricators 8 | . . . . . . . . . . . . . . . . 2 . 6 . . . . . . . . Report 1 | . . . . . . . . . . . . . . . . . . 1 . . . . . . . . Fabnet 5 | . . . . . . . . . . . . . . . . 1 . 4 . . . . . . . . Haulers 2 | . . . . . . . . . . . . . . . . 1 . 1 . . . . . . . . Repair Stations . | . . . . . . . . . . . . . . . . . . . . . . . . . . . Recycling Units 17 | . . . . . . 1 . . . . 5 . . . . 2 . 5 . . . . . 1 . 3 Fedlink 16 | . . . . . . 1 . . . . 5 . . . . 2 . 5 . . . . . 1 . 2 Scrapoids 1 | . . . . . . . . . . . . . . . . . . . . . . . . . . 1 Scanalyzers . | . . . . . . . . . . . . . . . . . . . . . . . . . . . Garrison Access 2 | . . . . . . . . . . 1 . . . . . . . . . . . . 1 . . . Jam 2 | . . . . . . . . . . 1 . . . . . . . . . . . . 1 . . . Data Cores Recovered 2 | . . . . . . . 1 . . . . . . . . . . 1 . . . . . . . . Used . | . . . . . . . . . . . . . . . . . . . . . . . . . . . Hacking Detections 60 | . 1 . . 5 . 2 9 1 . 10 6 . . . . 2 . 10 . . . . 1 2 5 6 Full Trace Events 12 | . . . . 5 . 2 1 . . 2 . . . . . . . . . . . . . . . 2 Feedback Events 2 | . . . . 1 . 1 . . . . . . . . . . . . . . . . . . . . Corruption 2 | . . . . 1 . 1 . . . . . . . . . . . . . . . . . . . . Feedback Blocked . | . . . . . . . . . . . . . . . . . . . . . . . . . . . Robot Schematics Acquired . | . . . . . . . . . . . . . . . . . . . . . . . . . . . Robots Built 1 | . . . . . . . . . . . . . . . . . . 1 . . . . . . . . Authchips . | . . . . . . . . . . . . . . . . . . . . . . . . . . . Time 187 | . . . . . . . . . . . . . . . . . . 187 . . . . . . . . Total Robot Build Rating 7 | . . . . . . . . . . . . . . . . . . 7 . . . . . . . . Part Schematics Acquired 6 | . . . . 1 . . . . . . 1 . . . . . . . . . 4 . . . . . Parts Built 6 | . . . . . . . . . . . . . . . . 2 . . . . . . . . . 4 Authchips . | . . . . . . . . . . . . . . . . . . . . . . . . . . . Time 282 | . . . . . . . . . . . . . . . . 128 . . . . . . . . . 154 Total Part Build Rating 50 | . . . . . . . . . . . . . . . . 16 . . . . . . . . . 34 Parts Repaired 1 | . . . . . . . . . . . 1 . . . . . . . . . . . . . . . Time 108 | . . . . . . . . . . . 108 . . . . . . . . . . . . . . . Parts Recycled . | . . . . . . . . . . . . . . . . . . . . . . . . . . . Recycled Matter . | . . . . . . . . . . . . . . . . . . . . . . . . . . . Retrieved Matter . | . . . . . . . . . . . . . . . . . . . . . . . . . . . Retrieved Components . | . . . . . . . . . . . . . . . . . . . . . . . . . . . Parts Scanalyzed 2 | . . . . . . . . . . . 2 . . . . . . . . . . . . . . . Part Schematics Acquired 1 | . . . . . . . . . . . 1 . . . . . . . . . . . . . . . Parts Damaged 1 | . . . . . . . . . . . 1 . . . . . . . . . . . . . . . Bothacking | -11 -10 -10 -10 -8 -8 -6 -6 -6 -6 -6 -5 -5 -5 -5 -4 -4 -4 -4 -4 -4 -4 -3 -3 -2 -2 -2 ------------ Run | Yrd Mat Min Sub Rec Scr Fac Ext Cet Arc Hub Fac Upp Upp War Pro Fac Was Fac Upp Upp Zhi Pro Res Res Tes Frg Used RIF Installer . | . . . . . . . . . . . . . . . . . . . . . . . . . . . Robots Hacked 19 | . . . . . . . . . . . . . . . . . . . . . . . 5 . 2 12 Non-combat 3 | . . . . . . . . . . . . . . . . . . . . . . . . . 2 1 Combat 16 | . . . . . . . . . . . . . . . . . . . . . . . 5 . . 11 Robot Hacks Applied 6 | . . . . . . . . . . . . . . . . . . . . . . . . . 3 3 parse_system 4 | . . . . . . . . . . . . . . . . . . . . . . . . . 1 3 no_distress 2 | . . . . . . . . . . . . . . . . . . . . . . . . . 2 . Relay Couplers Released 1 | . . . . . . . . . . 1 . . . . . . . . . . . . . . . . Machine Destruction 1 | . . . . . . . . . . 1 . . . . . . . . . . . . . . . . Fabnet Peak Effective % 12 | . . . . . . . . . . . . . . . . . . . . . . 12 12 4 4 4 Autooverrided 14 | . . . . . . . . . . . . . . . . . . . . . . . 5 . . 9 Robots Rewired 16 | . . . . . . . 10 . . . . . . 5 . 1 . . . . . . . . . . Allies Hacked 2 | . . . . . . . . . . . . . . 1 . . . . . . . . . . . 1 Hacks Repelled . | . . . . . . . . . . . . . . . . . . . . . . . . . . . Allies | -11 -10 -10 -10 -8 -8 -6 -6 -6 -6 -6 -5 -5 -5 -5 -4 -4 -4 -4 -4 -4 -4 -3 -3 -2 -2 -2 -------- Run | Yrd Mat Min Sub Rec Scr Fac Ext Cet Arc Hub Fac Upp Upp War Pro Fac Was Fac Upp Upp Zhi Pro Res Res Tes Frg Total Allies 76 | . . . . . . . 23 5 . 1 . . . 5 . 1 20 1 . . . . 5 . 1 14 Largest Group 22 | . . . . . . . 18 22 20 1 . . . 5 1 1 19 13 . . . . 1 . 1 6 Highest-Rated Group 1055 | . . . . . . . 657 1055 1036 26 . . . 263 41 49 684 525 . . . . 56 . 10 397 Highest-Rated Ally 159 | . . . . . . . 159 159 153 26 . . . 68 41 49 50 50 . . . . 56 . 10 89 Total Orders . | . . . . . . . . . . . . . . . . . . . . . . . . . . . Ally Attacks 559 | . . . . . . . 118 37 77 . . . . 14 12 1 125 64 . . . . 14 . . 97 Total Damage 15551 | . . . . . . . 2363 997 2097 . . . . 834 241 . 4695 1500 . . . . 310 . . 2514 Kills 76 | . . . . . . . 17 7 16 . . . . 5 2 . 9 13 . . . . . . . 7 Allies Corrupted 3 | . . . . . . . . . . . . . . . 1 1 . 1 . . . . . . . . Allies Melted 4 | . . . . . . . . . 1 . . . . 1 . . . 1 . . . . . . . 1 Intel | -11 -10 -10 -10 -8 -8 -6 -6 -6 -6 -6 -5 -5 -5 -5 -4 -4 -4 -4 -4 -4 -4 -3 -3 -2 -2 -2 ------- Run | Yrd Mat Min Sub Rec Scr Fac Ext Cet Arc Hub Fac Upp Upp War Pro Fac Was Fac Upp Upp Zhi Pro Res Res Tes Frg Active Infowar (turns) 5075 | . . . . . . . . . . 416 633 . . . . 257 149 1010 159 310 80 171 754 194 345 597 Optics 84 | . . . . . . . . . . . . . . . . . . . . . . . . . . 84 Sensors 3939 | . . . . . . . . . . . . . . . . 257 149 1010 159 310 80 171 751 194 345 513 Traps 144 | . . . . . . . . . . . . . . . . . . . . . . . 144 . . . Machine Analysis 938 | . . . . . . . . . . 416 522 . . . . . . . . . . . . . . . Jamming 3755 | . . . . . . . . . . . 527 . . . . 118 47 947 159 193 49 171 754 194 345 251 Robot Analysis Total 15 | . . . . 2 6 . 1 . . . . . . . . . . . . . 4 . . . 1 1 Derelict Logs Recovered 12 | . . . 1 . 3 . . . . . . . 1 . 3 . . . 2 2 . . . . . . Drone Launches 2 | . . . . . . . . . . . . . . . . . . . . . . . . . . 2 Drone Recoveries . | . . . . . . . . . . . . . . . . . . . . . . . . . . . Exploration | -11 -10 -10 -10 -8 -8 -6 -6 -6 -6 -6 -5 -5 -5 -5 -4 -4 -4 -4 -4 -4 -4 -3 -3 -2 -2 -2 ------------- Run | Yrd Mat Min Sub Rec Scr Fac Ext Cet Arc Hub Fac Upp Upp War Pro Fac Was Fac Upp Upp Zhi Pro Res Res Tes Frg Turns Passed 14807 | 47 122 89 927 476 1238 309 1674 485 90 1584 1260 615 236 522 363 375 149 1010 159 310 80 171 754 194 345 1223 Spaces Moved 15663 | 45 123 75 867 482 1151 185 799 244 47 685 659 586 280 673 538 716 233 1942 380 626 161 491 1192 483 789 1211 Core 291 | 17 . . . . . . 1 . . . 120 68 . . . . . . . . 1 . . . . 84 Treads 1260 | . . . . . . . . 217 47 685 311 . . . . . . . . . . . . . . . Legs 1618 | . . . . . 520 185 798 27 . . . . . . . . . . . . . . . . . 88 Wheels 2372 | 28 123 75 867 482 631 . . . . . . . . . . . . . . . . . . . . 166 Hover 2438 | . . . . . . . . . . . 228 518 280 673 538 201 . . . . . . . . . . Flight 7684 | . . . . . . . . . . . . . . . . 515 233 1942 380 626 160 491 1192 483 789 873 Fastest Speed 25 | 50 80 80 80 95 85 120 120 120 160 160 50 48 48 44 48 34 34 28 34 34 34 34 25 25 25 29 Average Speed 68 | 68 80 80 83 95 105 120 168 155 160 160 123 91 78 47 48 38 34 33 34 34 34 34 31 25 26 50 Slowest Speed 260 | 80 80 80 110 95 190 120 260 160 160 160 166 116 108 48 48 120 34 37 34 34 150 34 115 25 29 170 Overloaded Moves . | . . . . . . . . . . . . . . . . . . . . . . . . . . . Propulsion Burnouts . | . . . . . . . . . . . . . . . . . . . . . . . . . . . Robots Hopped 38 | . . . . . . . . . . . . . . 1 . 3 . 2 1 . . . 12 5 11 3 Potential Cave-ins . | . . . . . . . . . . . . . . . . . . . . . . . . . . . Cave-ins Triggered . | . . . . . . . . . . . . . . . . . . . . . . . . . . . Teleports 1 | . . . . . . . . . . . . . . . . . . . . . . . . . . 1 Exploration Rate (%) 53 | 3 30 25 53 90 79 6 81 67 75 71 22 67 52 86 81 21 90 46 59 51 62 65 40 12 72 41 Regions Visited 26 Branch Regions 18 Pre-discovered Areas 11 | . . . 1 . 2 . . . . . 1 . 1 . 2 . . . . 1 3 . . . . . Known Exits Taken 9 | . . . 1 . . . . . . . . . . . . . . 1 1 1 1 1 1 1 1 . Unknown Exits Taken 15 | 1 1 1 . 1 1 1 1 1 1 1 1 1 1 1 1 . . . . . . . . . . . Scrap Searched 21 | . . . 2 . 10 . . . . . . 2 . . 3 . . . 1 3 . . . . . . Spaces Dug 129 | . . . 10 . . 75 . . . . 2 . . . . 2 . 16 . . . . 5 8 10 1 Terrain Destroyed 661 | . . . 22 17 . 80 3 2 2 382 69 1 . 2 . 2 . 19 . 6 . . 5 8 10 31 Melee 39 | . . . . . . . . . . . . . . . . 2 . 16 . . . . 5 5 10 1 Projectile 144 | . . . 1 . . 10 3 2 2 60 21 1 . 2 . . . 3 . 6 . . . 3 . 30 AOE 478 | . . . 21 17 . 70 . . . 322 48 . . . . . . . . . . . . . . . Terrain Rammed . | . . . . . . . . . . . . . . . . . . . . . . . . . . . Walls Destroyed . | . . . . . . . . . . . . . . . . . . . . . . . . . . . Machines Disabled . | . . . . . . . . . . . . . . . . . . . . . . . . . . . Actions | -11 -10 -10 -10 -8 -8 -6 -6 -6 -6 -6 -5 -5 -5 -5 -4 -4 -4 -4 -4 -4 -4 -3 -3 -2 -2 -2 --------- Run | Yrd Mat Min Sub Rec Scr Fac Ext Cet Arc Hub Fac Upp Upp War Pro Fac Was Fac Upp Upp Zhi Pro Res Res Tes Frg Total 18617 | 60 134 103 992 492 1172 222 1074 333 57 919 910 655 286 851 640 796 293 2247 408 710 183 493 1505 538 877 1667 Wait 1611 | . 3 29 39 4 . 5 113 46 6 78 71 42 1 116 101 33 48 240 26 71 1 . 235 37 46 220 Move 15569 | 44 122 74 866 481 1150 184 798 243 46 684 658 585 279 671 537 710 232 1937 377 625 160 490 1170 472 768 1206 Hop 32 | . . . . . . . . . . . . . . 1 . 3 . 2 1 . . . 9 5 9 2 Pick Up 142 | 10 3 . 13 1 6 2 8 6 . 14 17 2 . . . 1 . 3 . . 2 1 . 2 4 47 Fast Attach 143 | . . . 2 . 5 1 11 6 . 1 7 17 . 8 . 13 2 5 2 1 8 . 29 2 7 16 Attach 117 | 6 . . 6 . 1 2 5 . . 8 24 1 . . . 1 . 2 . . . . 1 4 3 53 Detach 25 | . . . . . . . . . . 2 9 . . 1 . . . 1 . . . . 1 2 3 6 Swap 63 | . . . 9 3 1 1 6 4 . 8 7 1 . 1 . 4 . 2 . 2 3 . 4 . 4 3 Drop 167 | . . . 12 . 9 1 11 17 . 4 13 5 1 5 . 15 2 6 2 2 9 1 25 3 8 16 Fire 484 | . 6 . 44 3 . 25 28 11 5 117 104 1 5 9 . 2 9 5 . 9 . . 5 6 4 86 Melee 108 | . . . . . . . . . . . . . . 1 1 10 . 32 . . . 1 26 5 21 11 Ram 1 | . . . . . . . . . . 1 . . . . . . . . . . . . . . . . Kick 8 | . . . . . . 1 7 . . . . . . . . . . . . . . . . . . . Crush 2 | . . . . . . . . . . 2 . . . . . . . . . . . . . . . . Escape Stasis 26 | . . . . . . . 14 . . . . . . . . . . 12 . . . . . . . . Rewire 116 | . . . . . . . 73 . . . . . . 38 1 4 . . . . . . . . . . Trap 1 | . . . 1 . . . . . . . . . . . . . . . . . . . . . . . Miscellaneous 2 | . . . . . . . . . . . . 1 . . . . . . . . . . . . . 1 Route ------- -11/Scrapyard -10/Materials -10/Mines -10/Subcaves (discovered 2 exits: [*Mat] / *Rec) -8/Recycling (discovered 2 exits: *Fac / *Scr) -8/Scraptown -6/Factory (discovered 2 exits: [*Low] / *Ext) -6/Extension (discovered 2 exits: *Fac / *Cet) -6/Cetus (discovered 2 exits: *Fac / *Arc) -6/Archives -6/Hub_04(d) (discovered 3 exits: *Fac x3) -5/Factory (discovered 2 exits: *Fac / [*Upp]) -5/Upper Caves -5/Upper Caves (discovered 2 exits: *Fac / *War) -5/Warlord -4/Proximity Caves -4/Factory -4/Waste -4/Factory (discovered 4 exits: *Res / *Upp x2 / Arm) -4/Upper Caves -4/Upper Caves -4/Zhirov -3/Proximity Caves -3/Research -2/Research (discovered 2 exits: *Tes x2) -2/Testing (discovered 3 exits: *Acc / *Sec / *Frg) -2/Protoforge History --------- Turn | Location | Event 7 | -11/Scrapyard | Discovered new exit (range 15) 48 | -11/Scrapyard | Entered Materials 158 | -10/Materials | Discovered new exit (range 16) 170 | -10/Materials | Entered Mines 181 | -10/Mines | Met a Derelict bent on vengeance 257 | -10/Mines | Discovered new exit (range 3) 259 | -10/Mines | Entered Subcaves 270 | -10/Subcaves | Shifting Twisted Machinery released Shrapnel Trap 303 | -10/Subcaves | Ambushed by Subdwellers from Twisted Machinery 325 | -10/Subcaves | Build established: Mutant 364 | -10/Subcaves | Shifting Twisted Machinery released Flamer 675 | -10/Subcaves | Learned Materials terminal intel 686 | -10/Subcaves | Disturbed a concealed Subdweller 710 | -10/Subcaves | Core integrity fell below 50% 968 | -10/Subcaves | Visited Clippyterm 971 | -10/Subcaves | Identified exit to Recycling 971 | -10/Subcaves | Learned location of Section 7 (-2) 1147 | -10/Subcaves | Discovered new exit (range 9) 1185 | -10/Subcaves | Core integrity fell below 20% 1186 | -10/Subcaves | Entered Recycling 1353 | -8/Recycling | Build established: Scavenger-Mutant 1400 | -8/Recycling | Discovered new exit (range 13) 1638 | -8/Recycling | Scanned before Scraplab entrance 1652 | -8/Recycling | Entered Scraplab 1660 | -8/Recycling | Discovered new exit (range 2) 1662 | -8/Recycling | Entered Scraptown 1664 | -8/Scraptown | System corruption cleaned by C-Scrubber 1701 | -8/Scraptown | Learned location of Extension (-6) 1863 | -8/Scraptown | Scanned Subdweller tech in exchange for log data 1865 | -8/Scraptown | Learned Factory machine intel 1866 | -8/Scraptown | Learned Factory terminal intel 1867 | -8/Scraptown | Learned location of Testing (-2) 1899 | -8/Scraptown | Visited The Evicted 1912 | -8/Scraptown | Visited Spacefarers 1929 | -8/Scraptown | Visited CR-KLE's Repair Center 1940 | -8/Scraptown | Visited IN-MT5's Study 1959 | -8/Scraptown | Visited UFD Registry 1959 | -8/Scraptown | Registered with UFD as "Powercycle" 1966 | -8/Scraptown | Visited Bundlers 2030 | -8/Scraptown | Visited Analyses Database 2050 | -8/Scraptown | Visited Abandonware Association 2059 | -8/Scraptown | Learned abandonware demo "HACKBUD.EXE" 2059 | -8/Scraptown | Learned abandonware demo "KABOOM.EXE" 2079 | -8/Scraptown | Visited Derelict Rescue Squad 2085 | -8/Scraptown | Found DRS Beacon 2112 | -8/Scraptown | Delivered Scrap Shield to a Scientist 2173 | -8/Scraptown | Visited Curators Association 2203 | -8/Scraptown | Visited Research Penetration Think Tank 2235 | -8/Scraptown | Visited Scrapoid Research Area 2253 | -8/Scraptown | Visited DA-N13 Charitable Foundation 2260 | -8/Scraptown | Found DCF Scrap (28 items) 2305 | -8/Scraptown | Visited Science Testing Area 2367 | -8/Scraptown | Visited Cyclists 2382 | -8/Scraptown | Entered Cyclist Reading Room 2401 | -8/Scraptown | Visited Fellowship of the Rings 2414 | -8/Scraptown | Build established: Mutant 2692 | -8/Scraptown | CR-KLE repaired 6 parts 2834 | -8/Scraptown | Met Optimus 2834 | -8/Scraptown | Accepted into 0bPrime 2897 | -8/Scraptown | Discovered new exit (range 3) 2900 | -8/Scraptown | Entered Factory 2900 | -6/Factory | Evolved 8 slots: Propulsion x2, Utility x5, Weapon x1 2901 | -6/Factory | Loaded intel: 308 machine locations 2902 | -6/Factory | Loaded intel: 25 terminal locations 2982 | -6/Factory | Loaded intel: 8 recycling unit locations 3142 | -6/Factory | Spotted B-75 Beast 3153 | -6/Factory | Destroyed B-75 Beast 3158 | -6/Factory | Discovered new exit (range 13) 3194 | -6/Factory | Discovered new exit (range 14) 3209 | -6/Factory | Entered Extension 3328 | -6/Extension | Lost 4 parts (1p2n1w) 3371 | -6/Extension | Rescued a captive Derelict 3371 | -6/Extension | Rescued a captive Derelict 3577 | -6/Extension | Rescued a captive Derelict 3599 | -6/Extension | Rescued a captive Derelict 4195 | -6/Extension | Spotted B-75 Beast 4213 | -6/Extension | Allies destroyed B-75 Beast 4222 | -6/Extension | Spotted B-75 Beast 4243 | -6/Extension | Allies destroyed B-75 Beast 4254 | -6/Extension | Lost 4 allies 4377 | -6/Extension | Rescued a captive Derelict 4378 | -6/Extension | Rescued a captive Derelict 4399 | -6/Extension | Rescued a captive Derelict 4404 | -6/Extension | Rescued a captive Derelict 4430 | -6/Extension | Rescued a captive Derelict 4461 | -6/Extension | Rescued A7 4620 | -6/Extension | Rescued a captive Derelict 4620 | -6/Extension | Rescued a captive Derelict 4666 | -6/Extension | Rescued a captive Derelict 4734 | -6/Extension | Rescued a captive Derelict 4803 | -6/Extension | Discovered new exit (range 10) 4806 | -6/Extension | Discovered new exit (range 6) 4883 | -6/Extension | Entered Cetus 4883 | -6/Cetus | Accompanied by 18 allies (A7) 4888 | -6/Cetus | Acquired a Cetus Manufacturing Module code from A7 4899 | -6/Cetus | Spotted Cetus Guard 4899 | -6/Cetus | Spotted Cetus Guard 4902 | -6/Cetus | Allies destroyed Cetus Guard 4902 | -6/Cetus | Spotted Cetus Guard 4904 | -6/Cetus | Spotted Cetus Guard 4908 | -6/Cetus | Destroyed Cetus Guard 4909 | -6/Cetus | Allies destroyed Cetus Guard 4912 | -6/Cetus | Allies destroyed Cetus Guard 5001 | -6/Cetus | Started Cetus Manufacturing Module 5026 | -6/Cetus | Manufactured an Enhanced Grunt 5051 | -6/Cetus | Manufactured an Enhanced Grunt 5072 | -6/Cetus | Discovered new exit (range 15) 5076 | -6/Cetus | Manufactured an Enhanced Grunt 5098 | -6/Cetus | Spotted Cetus Guard 5098 | -6/Cetus | Spotted Cetus Guard 5101 | -6/Cetus | Manufactured an Enhanced Grunt 5101 | -6/Cetus | Spotted Cetus Guard 5102 | -6/Cetus | Spotted Cetus Guard 5104 | -6/Cetus | Destroyed Cetus Guard 5106 | -6/Cetus | Allies destroyed Cetus Guard 5115 | -6/Cetus | Allies destroyed Cetus Guard 5115 | -6/Cetus | Allies destroyed Cetus Guard 5125 | -6/Cetus | Discovered new exit (range 15) 5126 | -6/Cetus | Manufactured an Enhanced Grunt 5134 | -6/Cetus | Met Revision 17 5257 | -6/Cetus | Escorted A7 to Cetus Mainframe 5368 | -6/Cetus | Entered Archives 5368 | -6/Archives | Accompanied by 20 allies (A7) 5373 | -6/Archives | Received a hacking code to weaken MAIN.C 5387 | -6/Archives | Met Zhirov 5393 | -6/Archives | Reinforcements dispatched to Archives 5406 | -6/Archives | Read partially decrypted archive contents 5409 | -6/Archives | Discovered new exit (range 16) 5433 | -6/Archives | Build established: Commander-Tank 5438 | -6/Archives | Reinforcements dispatched to Archives 5440 | -6/Archives | Zhirov warped through subspace 5458 | -6/Archives | Zhirov detonated Archives 5458 | -6/Archives | Entered Hub_04(d) 5489 | -6/Hub_04(d) | Lost 17 allies 5499 | -6/Hub_04(d) | Garrison activated, responded to threat 5738 | -6/Hub_04(d) | Build established: Scavenger-Tank 5907 | -6/Hub_04(d) | Discovered new exit (range 14) 6308 | -6/Hub_04(d) | Network Hub disabled 6338 | -6/Hub_04(d) | Discovered new exit (range 9) 6350 | -6/Hub_04(d) | Spotted Lightning 6350 | -6/Hub_04(d) | Spotted Lightning 6350 | -6/Hub_04(d) | Spotted Lightning 6393 | -6/Hub_04(d) | System corruption reached 10% 6413 | -6/Hub_04(d) | Destroyed Lightning 6429 | -6/Hub_04(d) | Destroyed Lightning 6442 | -6/Hub_04(d) | Destroyed Lightning 6453 | -6/Hub_04(d) | Lost 3 parts (1n2u) 6457 | -6/Hub_04(d) | Found Prototype Device 6458 | -6/Hub_04(d) | Identified Exp. EM Shield 6460 | -6/Hub_04(d) | Spotted Lightning 6460 | -6/Hub_04(d) | Found Prototype Energy Cannon 6470 | -6/Hub_04(d) | Found Prototype Processor 6470 | -6/Hub_04(d) | Identified Exp. Targeting Computer 6499 | -6/Hub_04(d) | Destroyed Lightning 6514 | -6/Hub_04(d) | Found Prototype Device 6547 | -6/Hub_04(d) | Discovered new exit (range 16) 6656 | -6/Hub_04(d) | Spotted B-75 Beast 6728 | -6/Hub_04(d) | Spotted Lightning 6730 | -6/Hub_04(d) | Spotted Lightning 6763 | -6/Hub_04(d) | Destroyed B-75 Beast 6776 | -6/Hub_04(d) | Destroyed Lightning 6818 | -6/Hub_04(d) | Destroyed Lightning 7032 | -6/Hub_04(d) | Spotted Lightning 7032 | -6/Hub_04(d) | Spotted Lightning 7032 | -6/Hub_04(d) | Spotted Lightning 7035 | -6/Hub_04(d) | Network Hub disabled 7041 | -6/Hub_04(d) | Network Hub disabled 7042 | -6/Hub_04(d) | Entered Factory 7042 | -5/Factory | Evolved 2 slots: Propulsion x1, Utility x1 7057 | -5/Factory | Loaded intel: 8 recycling unit locations 7057 | -5/Factory | Learned location of Protoforge (-2) 7088 | -5/Factory | Identified Exp. Phase Shifter 7112 | -5/Factory | Identified EMDS 7358 | -5/Factory | Repaired Centrium Medium Armor Plating 7398 | -5/Factory | Build established: Scavenger-Gunner 7642 | -5/Factory | First assault squad dispatched 7696 | -5/Factory | Lost 3 parts (1p1n1w) 7702 | -5/Factory | Destroyed 12 combat bots 7905 | -5/Factory | Lost 9 parts (3n4u2w) 8185 | -5/Factory | Cargo convoy interrupted 8185 | -5/Factory | System corruption reached 10% 8241 | -5/Factory | Released all parts (7) 8247 | -5/Factory | Core integrity fell below 50% 8265 | -5/Factory | Discovered new exit (range 12) 8271 | -5/Factory | Lost 8 parts (1p1n4u2w) 8294 | -5/Factory | Discovered new exit (range 8) 8302 | -5/Factory | Entered Upper Caves 8304 | -5/Upper Caves | UFD Scientist delivered a prototype 8305 | -5/Upper Caves | Found Prototype Protection 8305 | -5/Upper Caves | Identified Enh. Scrap Shield 8325 | -5/Upper Caves | Activated DRS Beacon 8428 | -5/Upper Caves | Attracted the attention of an 0b10 checkpoint 8459 | -5/Upper Caves | Encountered a Warlord checkpoint 8600 | -5/Upper Caves | Discovered new exit (range 15) 8917 | -5/Upper Caves | Entered another Upper Caves area 8942 | -5/Upper Caves | Discovered new exit (range 11) 9082 | -5/Upper Caves | Ambushed by research squad 9128 | -5/Upper Caves | Learned location of Warlord (-5) 9151 | -5/Upper Caves | Discovered new exit (range 6) 9153 | -5/Upper Caves | Entered Warlord 9169 | -5/Warlord | System corruption cleaned by Quarantine Array 9261 | -5/Warlord | Visited the Vortex Lab 9270 | -5/Warlord | Found Prototype Energy Gun 9270 | -5/Warlord | Identified Vortex Shotgun 9272 | -5/Warlord | Warlord's base attacked by MAIN.C 9312 | -5/Warlord | Rebuked by Warlord 9517 | -5/Warlord | Warlord forces counterattacked 9581 | -5/Warlord | Discovered new exit (range 15) 9581 | -5/Warlord | Spotted Striker 9584 | -5/Warlord | Spotted Striker 9591 | -5/Warlord | Spotted Striker 9600 | -5/Warlord | Allies destroyed Striker 9602 | -5/Warlord | Destroyed Striker 9603 | -5/Warlord | Core integrity fell below 20% 9618 | -5/Warlord | Allies destroyed Striker 9672 | -5/Warlord | Spotted Executioner 9672 | -5/Warlord | Spotted Striker 9675 | -5/Warlord | Entered Proximity Caves 9675 | -4/Proximity Caves | Accompanied by 1 ally 9703 | -4/Proximity Caves | Lost 18 allies 9742 | -4/Proximity Caves | Attracted the attention of an 0b10 outpost 9903 | -4/Proximity Caves | Build established: Scavenger-Mutant 9950 | -4/Proximity Caves | Learned location of Quarantine (-3) 9970 | -4/Proximity Caves | Learned Research emergency access door positions 10014 | -4/Proximity Caves | Discovered new exit (range 15) 10038 | -4/Proximity Caves | Entered Factory 10038 | -4/Factory | Evolved 2 slots: Power x1, Propulsion x1 10083 | -4/Factory | Spotted B-86 Titan 10205 | -4/Factory | Loaded intel: 8 recycling unit locations 10217 | -4/Factory | Found Prototype Device 10217 | -4/Factory | Identified Adv. EM Shield 10292 | -4/Factory | Fabricated Mic. Antimatter Reactor? 10413 | -4/Factory | Sucked down chute 10413 | -4/Factory | Entered Waste 10414 | -4/Waste | Met a frightened Derelict 10416 | -4/Waste | Spotted C-40 Crusher 10426 | -4/Waste | Spotted C-40 Crusher 10433 | -4/Waste | Spotted C-40 Crusher 10435 | -4/Waste | Spotted C-40 Crusher 10444 | -4/Waste | Warlord forces began an assault 10456 | -4/Waste | Allies destroyed C-40 Crusher 10462 | -4/Waste | Allies destroyed C-40 Crusher 10466 | -4/Waste | Spotted C-40 Crusher 10471 | -4/Waste | Spotted C-40 Crusher 10479 | -4/Waste | Destroyed C-40 Crusher 10481 | -4/Waste | Allies destroyed C-40 Crusher 10487 | -4/Waste | Allies destroyed C-40 Crusher 10507 | -4/Waste | Discovered new exit (range 13) 10508 | -4/Waste | Lost 5 allies 10528 | -4/Waste | Identified exit to Factory 10562 | -4/Waste | Entered Factory 10562 | -4/Factory | Accompanied by 13 allies 10587 | -4/Factory | Discovered new exit (range 7) 10589 | -4/Factory | Identified exit to Upper Caves 10753 | -4/Factory | Spotted B-86 Titan 10762 | -4/Factory | Discovered new exit (range 7) 10765 | -4/Factory | Identified exit to Research 10781 | -4/Factory | Spotted B-86 Titan 10837 | -4/Factory | Loaded intel: 8 recycling unit locations 10927 | -4/Factory | Identified exit to Armory 11301 | -4/Factory | Fabricated M-30 Cleanser (x1) 11572 | -4/Factory | Entered Upper Caves 11623 | -4/Upper Caves | Learned Research emergency access door positions 11676 | -4/Upper Caves | Encountered a Warlord checkpoint 11702 | -4/Upper Caves | Entered an active Warlord outpost 11704 | -4/Upper Caves | Learned 12 Research zone layouts 11705 | -4/Upper Caves | Learned location of 1 exit from Factory 11705 | -4/Upper Caves | Learned Extension security intel 11705 | -4/Upper Caves | Learned Factory garrison access intel 11705 | -4/Upper Caves | Learned Extension garrison access intel 11715 | -4/Upper Caves | Discovered new exit (range 4) 11716 | -4/Upper Caves | Identified exit to Upper Caves 11731 | -4/Upper Caves | Entered another Upper Caves area 11765 | -4/Upper Caves | Encountered a Warlord checkpoint 11774 | -4/Upper Caves | Attracted the attention of an 0b10 checkpoint 11996 | -4/Upper Caves | Learned Research trap positions 11997 | -4/Upper Caves | Discovered new exit (range 15) 12001 | -4/Upper Caves | Identified exit to Zhirov 12041 | -4/Upper Caves | Entered Zhirov 12041 | -4/Zhirov | Discovered new exit (range 3) 12042 | -4/Zhirov | Identified exit to Proximity Caves 12055 | -4/Zhirov | Learned location of Command (-1) 12067 | -4/Zhirov | Found Alien Artifact 12067 | -4/Zhirov | Identified Integrated Reactor 12067 | -4/Zhirov | Installed Integrated Reactor, increased core energy generation (+10) 12104 | -4/Zhirov | Found Alien Artifact 12121 | -4/Zhirov | Entered Proximity Caves 12130 | -3/Proximity Caves | Found Alien Artifact 12259 | -3/Proximity Caves | Discovered exit to Research (range 14) 12292 | -3/Proximity Caves | Entered Research 12292 | -3/Research | Evolved 2 slots: Propulsion x1, Utility x1 12294 | -3/Research | Loaded intel: 69 trap records 12492 | -3/Research | Revision forces began assault on 0b10 12493 | -3/Research | Local machine network offline 12506 | -3/Research | Found Prototype Processor 12506 | -3/Research | Identified Spectral Analyzer 12586 | -3/Research | Met up with Revision 17++ 12739 | -3/Research | Discovered new exit (range 9) 12742 | -3/Research | Identified exit to Research 12757 | -3/Research | Spotted B-86 Titan 12992 | -3/Research | Research terminal network offline 13046 | -3/Research | Entered another Research area 13046 | -2/Research | Evolved 2 slots: Utility x1, Weapon x1 13058 | -2/Research | Lost 4 allies 13058 | -2/Research | Loaded intel: 5 recycling unit locations 13105 | -2/Research | Build established: Scavenger-Sprinter 13165 | -2/Research | Identified exit to Testing 13240 | -2/Research | Entered Testing 13247 | -2/Testing | Found Prototype Energy Cannon 13247 | -2/Testing | Identified Cld. Nova Cannon 13263 | -2/Testing | Found Prototype Hackware 13268 | -2/Testing | Identified Exp. Hacking Suite 13282 | -2/Testing | Protovariant out of control (PP-0U6OXA3STK) 13282 | -2/Testing | Unleashed a protovariant (PP-0U6OXA3STK) 13351 | -2/Testing | Found Prototype Energy Gun 13351 | -2/Testing | Identified Hyp. EM Gauss Rifle 13513 | -2/Testing | Discovered new exit (range 12) 13519 | -2/Testing | Identified exit to Access 13547 | -2/Testing | Found Prototype Device 13547 | -2/Testing | Identified Exp. Hardlight Generator 13563 | -2/Testing | Spotted Fortress 13583 | -2/Testing | Discovered new exit (range 6) 13583 | -2/Testing | Discovered new exit (range 7) 13584 | -2/Testing | Identified exit to Section 7 13585 | -2/Testing | Identified exit to Protoforge 13585 | -2/Testing | Entered Protoforge 13826 | -2/Protoforge | Spotted Hotshot 13826 | -2/Protoforge | Spotted Hotshot 13828 | -2/Protoforge | Spotted Hotshot 13828 | -2/Protoforge | Spotted Hotshot 13833 | -2/Protoforge | Spotted AP7-3 13833 | -2/Protoforge | Spotted AP7-3 13835 | -2/Protoforge | Superfortress began startup sequence 13838 | -2/Protoforge | Spotted EXE-6 13838 | -2/Protoforge | Spotted EXE-6 13845 | -2/Protoforge | Spotted Decapitator 13845 | -2/Protoforge | Spotted Decapitator 13855 | -2/Protoforge | UFD initiated attack on Protoforge 13855 | -2/Protoforge | Loaded intel: 3 recycling unit locations 13867 | -2/Protoforge | Lost 3 parts (3u) 13889 | -2/Protoforge | Scrapoid reinforcements arrived 13893 | -2/Protoforge | Optimus greeted in Protoforge 13902 | -2/Protoforge | Allies destroyed AP7-3 13918 | -2/Protoforge | Found Scrap Suit 13941 | -2/Protoforge | Found Cep. XC Strikerail 13945 | -2/Protoforge | Found Prototype Processor 13945 | -2/Protoforge | Identified Exp. Core Analyzer 13968 | -2/Protoforge | Found Exp. Target Analyzer 13977 | -2/Protoforge | Destroyed Hotshot 13988 | -2/Protoforge | Destroyed EXE-6 13990 | -2/Protoforge | Allies destroyed EXE-6 14037 | -2/Protoforge | Spotted Striker 14040 | -2/Protoforge | Spotted Striker 14046 | -2/Protoforge | Lost 19 allies 14092 | -2/Protoforge | Spotted Overlord 14096 | -2/Protoforge | Spotted Executioner 14102 | -2/Protoforge | Found 0bPrime Scrap Suit 14106 | -2/Protoforge | Spotted Striker 14118 | -2/Protoforge | Spotted Executioner 14136 | -2/Protoforge | Destroyed Striker 14137 | -2/Protoforge | Spotted Decapitator 14138 | -2/Protoforge | Spotted Decapitator 14139 | -2/Protoforge | Spotted Striker 14139 | -2/Protoforge | Spotted Decapitator 14139 | -2/Protoforge | Spotted Decapitator 14140 | -2/Protoforge | Spotted Striker 14140 | -2/Protoforge | Spotted Decapitator 14145 | -2/Protoforge | Identified Dimensional Node Initializer 14145 | -2/Protoforge | Initialized slip node 14145 | -2/Protoforge | Destroyed Striker 14151 | -2/Protoforge | Spotted Striker 14154 | -2/Protoforge | Spotted Striker 14159 | -2/Protoforge | Destroyed Decapitator 14165 | -2/Protoforge | Released all parts (9) 14195 | -2/Protoforge | Lost 6 parts (3n2u1w) 14200 | -2/Protoforge | Found Prototype Protection 14201 | -2/Protoforge | Identified Centrium Heavy Armor Plating 14235 | -2/Protoforge | Lost 24 allies 14240 | -2/Protoforge | Spotted Striker 14240 | -2/Protoforge | Spotted Executioner 14243 | -2/Protoforge | Found Prototype Device 14244 | -2/Protoforge | Identified Exp. System Purifier 14250 | -2/Protoforge | Found Prototype Slashing Weapon 14251 | -2/Protoforge | Identified Transdimensional Reconstructor 14251 | -2/Protoforge | Warped through subspace 14252 | -2/Protoforge | Core integrity fell below 50% 14252 | -2/Protoforge | Identified Exp. Terror Saw 14311 | -2/Protoforge | Found 0bPrime Scrap Suit 14330 | -2/Protoforge | Fabricated Hvy. Shield Leg (x1) 14332 | -2/Protoforge | Fabricated Lgt. Quantum Reactor (x2) 14340 | -2/Protoforge | Fabricated Assault Drone Bay (x1) 14369 | -2/Protoforge | Spotted Striker 14395 | -2/Protoforge | Spotted Executioner 14396 | -2/Protoforge | P-80 Master assimilated allied 02F39-D 14398 | -2/Protoforge | P-80 Master assimilated allied WM-OC5(E) 14405 | -2/Protoforge | Spotted Executioner 14406 | -2/Protoforge | Local machine network offline 14433 | -2/Protoforge | Spotted Striker 14438 | -2/Protoforge | Spotted Striker 14447 | -2/Protoforge | Lost 7 allies 14463 | -2/Protoforge | Found Prototype Device 14464 | -2/Protoforge | Identified Adv. Kinecellerator 14470 | -2/Protoforge | Found Exp. Core Analyzer 14477 | -2/Protoforge | Lost 5 parts (2p1n2u) 14568 | -2/Protoforge | Spotted Executioner 14568 | -2/Protoforge | Spotted Executioner 14583 | -2/Protoforge | Destroyed Executioner 14583 | -2/Protoforge | Spotted Hotshot 14588 | -2/Protoforge | Spotted Hotshot 14622 | -2/Protoforge | Released all parts (9) 14623 | -2/Protoforge | Core integrity fell below 20% 14647 | -2/Protoforge | Spotted Striker 14652 | -2/Protoforge | Lost 10 parts (1p3n3u3w) 14686 | -2/Protoforge | Spotted Executioner 14691 | -2/Protoforge | Destroyed Executioner 14694 | -2/Protoforge | Found Exp. Core Analyzer 14695 | -2/Protoforge | Spotted Executioner 14697 | -2/Protoforge | Found Exp. Core Analyzer 14699 | -2/Protoforge | Found Adv. Kinecellerator 14712 | -2/Protoforge | Destroyed Executioner 14720 | -2/Protoforge | Found Exp. Core Analyzer 14725 | -2/Protoforge | Found Exp. Core Analyzer 14740 | -2/Protoforge | Spotted Striker 14744 | -2/Protoforge | Destroyed Striker 14744 | -2/Protoforge | Spotted Striker 14747 | -2/Protoforge | Lost 6 allies 14748 | -2/Protoforge | Destroyed Hotshot 14749 | -2/Protoforge | Spotted Striker 14752 | -2/Protoforge | Spotted Striker 14753 | -2/Protoforge | Spotted Executioner 14759 | -2/Protoforge | Spotted Striker 14780 | -2/Protoforge | Destroyed Striker 14808 | -2/Protoforge | Destroyed by G-73 Enforcer with Heavy Laser Last Messages --------------- (Destroy). 14795_ N-04 Retriever collects Myomer Leg. 14795_ Impulse Thruster Array destroyed. 14796_ Slug penetrates P-80 Master. 14796_ Slug penetrates G-73 Enforcer. 14796_ Slug penetrates Wall. 14799_ S-43 Plague destroyed. 14800_ Centrium Light Armor Plating destroyed. 14800_ P-80 Master destroyed. 14800_ Switching to secondary target: Striker. 14800_ Slug penetrates Striker. 14800_ Slug penetrates Wall. 14802_ Helical Railgun destroyed. 14803_ Slug penetrates Striker. 14804_ Critical hit (Impale). 14804_ Impulse Thruster Array destroyed. 14804_ Exp. Reaction Control System destroyed. 14807_ Slug penetrates Striker. 14807_ Slug penetrates Wall. 14808_ Helical Railgun destroyed. Map ----- +----------------------------------------------------+ | ?????????##???############???????????????????????? | | ?????????##???############????##########?????????? | | ?????????##???#?????????##????##########?????????? | | ?##########???#?????????########??????##?????????? | | ?##########???#?????????########??????##?????????? | | ?##???????????#???????????????????????##?????????? | | ?##?????????????????????###????#??????##?????????? | | ###???????????#?????????###????#??????##?????????? | | ###???????????#?????????###???????????##?????????? | | #?????????????#?????????###?##?#########?????????? | | #?????????????#############?##??????####?????????? | | #?????????????##########?????#??????##???????????? | | #?????????????##########?????#??????##???????????? | | #???????????????????????????????????##???????????? | | #?????????????##########?????#??????##???????????? | | #?????????????##########?????#??????##???????????? | | #?????????????#??????#################???????????? | | #?????????????#??????#################???????????? | | #?????????????#??????##?????##########???????????? | | #?????????????#??????##???## #########???????????? | | ###???????????#??????##???# ### ##???????????? | | ###??????""???#??????###### ## ##???????????? | | ????????"""" ####+########;;## ##???????????? | | ???? """! ##???????????? | | ??? **=! ##???????????? | | ??? [!%@= """ ##???????????? | | ??? i!=gKK ##???????????? | | #####?######;;#########!#%! """ ##???????????? | | #?????????###???????? ; ##???????????? | | #?????????###???????" ? ; """ ##???????????? | | #?????????###??????"" ?? ; * ##???????????? | | #?????????????????"""??? ; ""=%! ;#???????????? | | ??????????###????=%%!?? ; ! ##???????????? | | #?????????################% ##???????????? | | #?????????##########"#"""[! ##???????????? | | #?????????### ## " " ###########??? | | ####?#######?# # "!! % ""#"#########??? | | ####?##### # " "%% """ "# ##??? | | ???#?#######=[*" *"! & " # ##??? | | ???#?#######=#%!""""%"""%" ; ##??? | | ???#???? % %*%]% % %% * "# ##??? | | ???#??? " % %= ! %% % [ ""# " " ##??? | | ??????? %% % %%%%=% # ##### | | ???#??? % % %% %%%% # "" " ### # | | ???####?#""######" # &# %%%% % " """ ##[ | | ???###??? ??### ! ;;%;;%%& " % % !&" [! | | ???###??????### # [ %"%%%""""%"#"#" | | ######??????### " % ### """" % % %%" ""%%#" | | #??????### % % " !% % % %%%% | | " #??????### / =%! % % %%%%%% | +----------------------------------------------------+ Best States ------------- Heat Dissipation 97 Coolant Potential 50 Energy Generation 69 Energy Capacity 460 Matter Stores 300 Matter Capacity 300 Sight Range 23 Robot Scan Range 18 Terrain Scan Density 10 Jamming Range 16 Power Amplification 30 Additional Mass Support 9 Base Temperature (-) 200 Armor Coverage 1200 Resistance: TH 20 Resistance: EX 25 Resistance: EM 75 Core Shielding 20 Phase Shifting 20 Evasion (%) 97 Targeting Accuracy 20 Target Analysis 10 Core Analysis 12 Recoil Reduction 4 Kinecelleration 50 Offensive Hacking 16 Defensive Hacking 10 Item Schematics ----------------- Imp. System Restoration Module | -8/Recycling | Hacked Exp. Phase Shifter | -5/Factory | Scanalyzed Assault Drone Bay | -4/Zhirov | Free Exp. Heat Sink | -4/Zhirov | Free Exp. Optical Array | -4/Zhirov | Free Imp. Arc Thrower | -4/Zhirov | Free Robot Schematics ------------------ None Fabricated ------------ Mic. Antimatter Reactor | x2 | -4/Factory | Preloaded M-30 Cleanser | x1 | -4/Factory | Preloaded Hvy. Shield Leg | x1 | -2/Protoforge | Preloaded Lgt. Quantum Reactor | x2 | -2/Protoforge | Preloaded Assault Drone Bay | x1 | -2/Protoforge Repaired ---------- Centrium Medium Armor Plating | 16% | -5/Factory Alien Tech Used ----------------- Integrated Reactor Dimensional Node Initializer Transdimensional Reconstructor Achievements -------------- Beloved Challenges ------------ None Game ------ Seed TargetingWarpWeb Manual? 0 Play Time 05:16:23 Cumulative 293.8 hours Start 2025.05.21 @ 01:58:47 End 2025.05.24 @ 02:56:20 Sessions 5 Manual Loads 0 Difficulty Rogue Special Mode None Game No. 226 Rogue 217 Adventurer 9 Explorer 0 Win Type - Total 3 Types 2/0/0/1/0/0/0/0/0/0 Lore% 86 Gallery% 74 Achievement% 66 Wizard Run 0 Options --------- Layout 1 ASCII 0 Keyboard 0 Movement Numpad Keybinds 0 Fullscreen 1 Font 24/Smallcaps Map View 50x35 Zoom Use 0% Tactical HUD 1 Map Filters NONE Filters NONE Steam 1 RUN: 75347a82-7af3-4243-8595-a4fda0351820